bitfinex-derivatives/quotes_SOLF0:USTF0_20241025
["timestamp","ask_amount","ask_price","bid_price","bid_amount"]
[1729850814303,2.8897,173.16,173.12,2.8901]
[1729850814503,7.99699833,173.14,173.12,2.8901]
[1729850814711,7.99699833,173.14,173.09,7.99699833]
[1729850815005,4.88,173.16,173.1,7.99699833]
[1729850815006,7.99699833,173.15,173.1,7.99699833]
[1729850815799,7.99699833,173.15,173.12,2.8901]
[1729850816502,7.99699833,173.14,173.12,2.8901]
[1729850820305,7.7698,173.16,173.09,2.8907]
[1729850820306,10.88719833,173.13,173.09,2.8907]
[1729850820620,7.99699833,173.1,173.05,4.88]
[1729850820809,7.99699833,173.08,173.03,12.87699833]
[1729850821211,7.99699833,173.08,173.04,2.8915]
[1729850821506,7.99699833,173.08,173.03,4.88]
[1729850821507,7.99699833,173.08,173.03,7.99699833]
[1729850822109,7.99699833,173.07,173.02,12.87699833]
[1729850823411,7.99699833,173.07,173.04,2.8915]
[1729850829721,7.99699833,173.08,173.04,2.8915]
[1729850831815,7.99699833,173.07,173.04,2.8915]
[1729850834022,10.88849833,173.05,173.01,2.8921]
[1729850834223,7.99699833,173.03,173.01,2.8921]
[1729850839125,7.99699833,173.03,173.02,2.892]
[1729850839332,7.99699833,173.03,172.99,7.99699833]
[1729850839625,7.99699833,173.03,172.98,2.8925]
[1729850839626,7.99699833,173.01,172.98,2.8925]
[1729850840032,7.99699833,172.99,172.98,2.8925]
[1729850841830,7.99699833,173.0,172.98,2.8925]
[1729850842027,7.99699833,172.99,172.97,2.8927]
[1729850842732,7.99699833,172.99,172.96,2.8928]
[1729850843431,7.99699833,172.97,172.95,2.893]
[1729850843927,7.99699833,172.97,172.77,8.6885]
[1729850843928,10.88989833,172.97,172.92,15.45379962]
[1729850844125,7.99699833,172.94,172.92,6.96301555]
[1729850844332,7.99699833,172.94,172.92,2.8935]
[1729850845433,7.99699833,172.94,172.91,2.8938]
[1729850846528,7.99699833,172.93,172.87,8.49241987]
[1729850846737,7.99699833,172.93,172.88,19.31755112]
[1729850846922,7.99699833,172.93,172.89,6.75508123]
[1729850847125,4.66,172.95,172.9,5.30797608]
[1729850847126,7.99699833,172.91,172.9,5.30797608]
[1729850847327,7.99699833,172.91,172.85,7.99699833]
[1729850847631,7.99699833,172.91,172.86,13.80189367]
[1729850847831,7.99699833,172.91,172.89,2.8941]
[1729850848035,12.65699833,172.91,172.89,2.8941]
[1729850848231,4.66,172.91,172.89,2.8941]
[1729850848438,12.65699833,172.91,172.89,2.8941]
[1729850852038,12.65699833,172.91,172.88,2.8943]
[1729850853844,12.65699833,172.91,172.89,2.8941]
[1729850854246,4.66,172.92,172.9,2.8938]
[1729850856545,4.66,172.92,172.88,7.99699833]
[1729850856745,4.66,172.92,172.91,2.8938]
[1729850857345,12.65699833,172.92,172.91,2.8938]
[1729850858053,1.1917,172.98,172.94,2.8932]
[1729850858349,7.99699833,172.95,172.89,7.99699833]
[1729850859245,7.99699833,172.95,172.94,2.8933]
[1729850861554,4.48,172.96,172.95,2.8931]
[1729850861752,12.47699833,172.96,172.95,2.8931]
[1729850873571,4.48,172.96,172.95,2.8931]
[1729850873757,12.47699833,172.96,172.95,2.8931]
[1729850875565,12.47699833,172.96,172.94,2.8932]
[1729850875771,7.99699833,172.95,172.94,2.8932]
[1729850876970,7.99699833,172.95,172.87,5.28169847]
[1729850877172,7.99699833,172.9,172.87,5.28169847]
[1729850877474,7.99699833,172.9,172.85,7.99699833]
[1729850877874,7.99699833,172.9,172.89,2.8941]
[1729850878670,4.48,172.92,172.85,7.99699833]
[1729850878871,7.99699833,172.91,172.9,2.8939]
[1729850883474,2.4241,172.95,172.87,7.99699833]
[1729850883776,7.99699833,172.93,172.92,2.8936]
[1729850890282,7.99699833,172.93,172.87,7.99699833]
[1729850891383,7.99699833,172.93,172.92,2.8936]
[1729850893982,4.42,172.94,172.87,7.99699833]
[1729850894282,4.42,172.94,172.93,2.8935]
[1729850894485,12.41699833,172.94,172.93,2.8935]
[1729850895283,12.41699833,172.94,172.91,2.8937]
[1729850896782,12.41699833,172.94,172.92,2.8936]
[1729850898088,12.41699833,172.94,172.88,7.99699833]
[1729850898396,12.41699833,172.94,172.91,2.8938]
[1729850899184,4.42,172.95,172.91,2.8937]
[1729850899389,7.99699833,172.93,172.91,2.8937]
[1729850899590,4.42,172.95,172.88,7.99699833]
[1729850899787,7.99699833,172.94,172.92,2.8935]
[1729850903603,7.99699833,172.94,172.88,7.99699833]
[1729850903807,7.99699833,172.93,172.9,2.8938]
[1729850904009,7.99699833,172.93,172.91,5.32214749]
[1729850904205,7.99699833,172.93,172.9,2.8938]
[1729850904404,7.99699833,172.93,172.91,6.77135758]
[1729850904612,7.99699833,172.93,172.9,2.8938]
[1729850904823,4.42,172.95,172.91,6.77138111]
[1729850905110,7.99699833,172.92,172.88,2.8942]
[1729850905313,7.99699833,172.89,172.88,2.8942]
[1729850905501,7.99699833,172.89,172.88,25.91502619]
[1729850905897,4.42,172.95,172.88,19.37984014]
[1729850906102,7.99699833,172.92,172.9,2.8938]
[1729850906302,7.99699833,172.92,172.91,15.29534886]
[1729850906503,7.99699833,172.92,172.91,19.38138395]
[1729850906706,7.99699833,172.92,172.9,2.8938]
[1729850906908,7.99699833,172.92,172.91,15.30031018]
[1729850907113,7.99699833,172.92,172.91,19.38627342]
[1729850907301,7.99699833,172.92,172.91,15.30031018]
[1729850907705,7.99699833,172.92,172.91,19.38876864]
[1729850909405,10.89059833,172.92,172.91,19.38876864]
[1729850910513,10.89059833,172.92,172.91,15.30031018]
[1729850910917,10.89059833,172.92,172.91,19.39224133]
[1729850911922,10.89059833,172.92,172.81,3.8103]
[1729850911923,2.894,172.9,172.81,3.8103]
[1729850912214,7.99699833,172.88,172.82,14.54600518]
[1729850912420,7.99699833,172.88,172.86,2.8946]
[1729850913610,10.89129833,172.88,172.84,2.8949]
[1729850913810,7.99699833,172.85,172.8,4.42]
[1729850914016,7.99699833,172.85,172.8,12.41699833]
[1729850914417,7.99699833,172.85,172.81,6.37402782]
[1729850914715,7.99699833,172.85,172.82,6.37402782]
[1729850914924,7.99699833,172.84,172.82,9.26922782]
[1729850915118,7.99699833,172.84,172.83,6.37269594]
[1729850915318,7.99699833,172.84,172.82,2.8952]
[1729850916116,2.8952,172.83,172.77,6.37497614]
[1729850916318,7.99699833,172.79,172.78,6.37497614]
[1729850917117,7.99699833,172.79,172.74,9.25679833]
[1729850917322,7.99699833,172.79,172.78,2.8958]
[1729850918318,4.42,172.82,172.81,2.8955]
[1729850918514,7.99699833,172.81,172.76,7.99699833]
[1729850919318,7.99699833,172.81,172.8,2.8956]
[1729850920422,4.42,172.82,172.8,2.8956]
[1729850920633,7.99699833,172.82,172.8,2.8956]
[1729850925321,7.99699833,172.81,172.8,2.8956]
[1729850929933,7.99699833,172.81,172.76,6.59140815]
[1729850930133,7.99699833,172.78,172.77,2.8961]
[1729850930931,7.99699833,172.78,172.76,2.8963]
[1729850931135,7.99699833,172.77,172.76,2.8963]
[1729850934033,4.42,172.8,172.74,5.14269124]
[1729850934234,4.42,172.8,172.58,17.37]
[1729850934235,7.99699833,172.75,172.68,7.99699833]
[1729850934438,4.42,172.8,172.69,14.58837845]
[1729850934439,7.99699833,172.74,172.69,14.58837845]
[1729850934739,7.3157,172.8,172.73,2.8967]
[1729850934932,7.99699833,172.76,172.71,7.99699833]
[1729850935237,7.99699833,172.76,172.72,2.8969]
[1729850935531,7.99699833,172.76,172.67,5.6403]
[1729850935532,7.99699833,172.73,172.69,4.42]
[1729850935736,7.99699833,172.72,172.67,1.2203]
[1729850935926,7.99699833,172.72,172.71,2.8971]
[1729850936832,7.99699833,172.72,172.68,1.44873656]
[1729850937031,7.99699833,172.7,172.67,9.56851278]
[1729850937237,7.99699833,172.7,172.67,5.86881491]
[1729850937440,7.99699833,172.7,172.67,4.42]
[1729850937642,7.99699833,172.7,172.68,2.8977]
[1729850937940,7.99699833,172.69,172.68,2.8977]
[1729850939833,4.42,172.72,172.64,13.13520394]
[1729850940036,7.99699833,172.71,172.66,7.99699833]
[1729850940231,4.42,172.72,172.66,7.99699833]
[1729850940435,2.5508,172.75,172.74,2.8966]
[1729850940633,8.03845484,173.01,172.69,7.99699833]
[1729850940634,1.1854,172.84,172.69,7.99699833]
[1729850940837,7.99699833,172.77,172.72,7.99699833]
[1729850941639,7.99699833,172.77,172.71,7.99699833]
[1729850941837,2.8956,172.81,172.71,7.99699833]
[1729850942038,7.99699833,172.76,172.71,7.99699833]
[1729850942746,7.99699833,172.76,172.69,1.44856034]
[1729850942947,7.99699833,172.76,172.71,7.99699833]
[1729850943341,7.99699833,172.77,172.72,7.99699833]
[1729850944349,7.99699833,172.77,172.76,2.8963]
[1729850944555,3.7569,172.84,172.74,7.99699833]
[1729850944747,7.99699833,172.8,172.74,7.99699833]
[1729850944947,7.99699833,172.8,172.79,2.8958]
[1729850946849,3.7569,172.84,172.8,2.8955]
[1729850946850,7.99699833,172.81,172.8,2.8955]
[1729850955454,2.5715,172.84,172.75,7.99699833]
[1729850955660,4.42,172.86,172.83,2.8951]
[1729850955865,7.99699833,172.84,172.83,2.8951]
[1729850956063,2.8938,172.91,172.87,2.8943]
[1729850956356,7.99699833,172.88,172.87,2.8943]
[1729850959955,7.99699833,172.89,172.88,2.8943]
[1729850961549,7.99699833,172.91,172.9,2.894]
[1729850964462,6.9177,172.94,172.86,7.99699833]
[1729850964656,6.9177,172.94,172.79,18.71385498]
[1729850964657,2.4977,172.94,172.87,12.41699833]
[1729850964856,7.99699833,172.93,172.87,12.41699833]
[1729850966363,7.99699833,172.93,172.92,2.8936]
[1729850966662,7.3128,172.97,172.92,2.8936]
[1729850966861,7.99699833,172.95,172.93,2.8934]
[1729850970454,2.4707,172.98,172.89,7.99699833]
[1729850970654,7.99699833,172.97,172.92,7.99699833]
[1729850971064,1.2156,173.02,172.94,7.99699833]
[1729850971361,7.99699833,173.0,172.94,7.99699833]
[1729850971665,7.99699833,173.0,172.99,2.8925]
[1729850975254,7.99699833,173.0,172.98,2.8926]
[1729850975456,7.99699833,172.99,172.94,4.4]
[1729850975659,7.99699833,172.97,172.94,4.4]
[1729850975861,1.2156,173.02,172.94,4.4]
[1729850976066,7.99699833,173.0,172.95,7.99699833]
[1729850976565,7.99699833,173.0,172.97,2.8927]
[1729850976967,7.99699833,172.98,172.97,2.8927]
[1729850978666,7.99699833,172.98,172.96,2.8929]
[1729850978868,7.99699833,172.97,172.9,4.4]
[1729850979170,1.2156,173.02,172.94,7.99699833]
[1729850979367,1.2156,173.02,172.99,2.8923]
[1729850979368,7.99699833,173.01,172.99,2.8923]
[1729850981061,7.99699833,173.01,172.96,7.99699833]
[1729850982372,7.99699833,173.01,172.99,2.8924]
[1729850982566,7.99699833,173.01,172.96,7.99699833]
[1729850982769,7.99699833,173.01,172.99,2.8923]
[1729850983265,2.8926,172.98,172.93,2.8933]
[1729850983467,7.99699833,172.95,172.9,7.99699833]
[1729850983671,4.4,173.0,172.9,7.99699833]
[1729850983863,7.99699833,172.96,172.9,7.99699833]
[1729850984375,7.99699833,172.98,172.97,2.8928]
[1729850984566,7.99699833,172.98,172.93,7.99699833]
[1729850984870,7.99699833,172.96,172.91,7.99699833]
[1729850986268,7.99699833,172.96,172.92,2.8935]
[1729850986464,7.99699833,172.96,172.91,7.99699833]
[1729850987269,7.99699833,172.96,172.94,2.8932]
[1729850987871,7.99699833,172.95,172.93,2.8935]
[1729850992174,2.8928,172.97,172.93,2.8935]
[1729850992481,7.99699833,172.95,172.93,2.8935]
[1729851000578,7.99699833,172.97,172.92,7.99699833]
[1729851000980,1.2156,173.02,172.96,2.8929]
[1729851001184,7.99699833,173.01,172.95,7.99699833]
[1729851001987,7.99699833,173.01,172.99,2.8924]
[1729851003888,1.2097,173.03,172.99,7.99699833]
[1729851004088,4.4,173.07,173.0,7.99699833]
[1729851004277,7.99699833,173.05,173.0,7.99699833]
[1729851004782,7.99699833,173.04,172.99,7.99699833]
[1729851005480,7.99699833,173.05,173.02,2.8919]
[1729851005681,4.4,173.07,173.02,2.8919]
[1729851005885,7.99699833,173.05,173.0,7.99699833]
[1729851006085,7.99699833,173.05,173.03,2.8917]
[1729851006484,7.99699833,173.04,172.99,2.8923]
[1729851006790,7.99699833,173.02,172.98,4.4]
[1729851007382,7.99699833,173.02,172.97,7.99699833]
[1729851007587,7.99699833,173.01,172.97,4.4]
[1729851007892,7.99699833,173.01,172.96,7.99699833]
[1729851008188,7.99699833,173.01,172.98,2.8925]
[1729851008388,7.99699833,173.01,172.96,7.99699833]
[1729851008690,7.99699833,173.01,172.99,2.8924]
[1729851008888,7.99699833,173.0,172.96,7.99699833]
[1729851009288,7.99699833,173.0,172.96,2.8929]
[1729851009886,7.99699833,172.99,172.96,2.8929]
[1729851010500,7.99699833,172.97,172.95,2.893]
[1729851012983,7.99699833,172.97,172.95,2.8931]
[1729851013196,7.99699833,172.97,172.93,4.4]
[1729851013592,7.99699833,172.97,172.94,2.8932]
[1729851014395,2.8925,172.99,172.95,7.99699833]
[1729851014694,7.99699833,172.98,172.94,2.8932]
[1729851015495,7.99699833,172.98,172.95,2.893]
[1729851015991,4.1468,173.03,172.98,2.8925]
[1729851016197,9.25199833,173.03,172.98,7.99699833]
[1729851016899,9.25199833,173.03,172.99,2.8923]
[1729851017099,1.255,173.03,172.99,10.88929833]
[1729851017302,7.99699833,173.03,172.98,7.99699833]
[1729851017606,7.99699833,173.03,173.0,2.8923]
[1729851018191,4.4,173.05,173.0,2.8923]
[1729851018408,10.88899833,173.02,172.98,2.8925]
[1729851018597,7.99699833,173.0,172.98,2.8925]
[1729851018900,7.99699833,173.0,172.98,2.8926]
[1729851019493,7.99699833,173.0,172.96,4.4]
[1729851019702,7.99699833,173.0,172.97,2.8926]
[1729851020598,10.88899833,173.02,172.98,2.8926]
[1729851023499,7.99699833,173.02,172.98,2.8926]
[1729851025596,2.8918,173.03,172.98,2.8926]
[1729851025797,7.99699833,173.02,172.98,2.8926]
[1729851026209,7.99699833,173.02,172.96,12.39699833]
[1729851026210,7.99699833,173.02,172.97,7.99699833]
[1729851027404,7.99699833,173.02,172.99,2.8924]
[1729851029601,7.99699833,173.01,172.98,2.8926]
[1729851030498,2.892,173.02,172.99,2.8923]
[1729851030499,7.99699833,173.02,172.99,2.8923]
[1729851030699,1.1822,173.09,173.0,7.99699833]
[1729851030899,7.99699833,173.07,173.01,7.99699833]
[1729851032107,7.99699833,173.06,173.03,2.8917]
[1729851032495,10.88859833,173.05,173.01,2.892]
[1729851032696,7.99699833,173.03,172.96,8.20411464]
[1729851032897,10.88889833,173.03,172.97,18.97287297]
[1729851033205,10.88889833,173.03,172.98,2.8925]
[1729851033406,10.88889833,173.03,172.97,7.99699833]
[1729851033602,10.88889833,173.03,172.99,2.8924]
[1729851034610,7.99699833,173.03,172.99,2.8924]
[1729851035301,2.8916,173.04,172.98,7.99699833]
[1729851035497,7.99699833,173.03,173.0,2.8923]
[1729851035901,5.3827,173.05,172.96,4.4]
[1729851035902,10.48819833,173.05,173.01,7.99699833]
[1729851036101,7.99699833,173.05,173.01,7.99699833]
[1729851036413,7.99699833,173.05,173.02,2.8918]
[1729851038101,7.99699833,173.05,173.01,7.99699833]
[1729851038411,7.99699833,173.05,173.03,2.8918]
[1729851039916,7.99699833,173.05,173.02,2.8918]
[1729851042814,7.99699833,173.03,172.83,5.791]
[1729851043017,7.99699833,173.03,173.0,2.8923]
[1729851046020,2.8913,173.06,173.01,2.8921]
[1729851046217,7.99699833,173.03,173.01,2.8921]
[1729851046616,7.99699833,173.05,173.01,2.8921]
[1729851048216,7.99699833,173.02,172.98,4.4]
[1729851048413,7.99699833,173.02,173.0,2.8923]
[1729851052916,7.99699833,173.02,172.97,12.39699833]
[1729851053122,7.99699833,173.02,172.98,4.33918184]
[1729851053314,7.99699833,173.01,172.98,2.8925]
[1729851053516,7.99699833,173.01,172.94,6.32603926]
[1729851053720,7.99699833,172.98,172.97,2.8928]
[1729851053926,7.99699833,172.98,172.94,12.39699833]
[1729851054324,7.99699833,172.98,172.96,2.8928]
[1729851054725,7.99699833,172.98,172.94,12.39699833]
[1729851054726,7.99699833,172.97,172.94,4.4]
[1729851054921,7.99699833,172.97,172.87,62.46]
[1729851054922,7.99699833,172.95,172.89,10.73103885]
[1729851055221,7.99699833,172.93,172.9,6.5820171]
[1729851055426,7.99699833,172.93,172.91,6.5820171]
[1729851055621,7.99699833,172.93,172.9,2.8939]
[1729851055817,1.2288,173.03,172.91,1.44719511]
[1729851055818,7.99699833,172.92,172.91,1.44719511]
[1729851056021,7.99699833,172.92,172.87,4.4]
[1729851056218,2.93853592,172.94,172.88,6.58484263]
[1729851056425,7.99699833,172.88,172.83,7.99699833]
[1729851056623,7.99699833,172.88,172.84,18.76859834]
[1729851056824,7.99699833,172.88,172.85,6.58601207]
[1729851057028,7.99699833,172.87,172.86,1.44758772]
[1729851057225,7.99699833,172.87,172.8,6.33713053]
[1729851057523,8.1777,172.88,172.81,17.32236388]
[1729851057730,7.99699833,172.87,172.82,5.13882134]
[1729851057933,7.99699833,172.87,172.83,6.58665083]
[1729851058118,7.99699833,172.87,172.81,7.99699833]
[1729851058323,7.99699833,172.87,172.79,6.33898613]
[1729851058324,8.1777,172.88,172.82,1.44778852]
[1729851058523,8.1777,172.88,172.83,1.44778852]
[1729851058829,8.1777,172.88,172.79,12.50812677]
[1729851059033,8.1777,172.88,172.8,14.80423314]
[1729851059220,11.0721,172.88,172.82,2.8953]
[1729851061033,11.0721,172.88,172.8,3.95733668]
[1729851061235,8.1777,172.88,172.81,6.5807504]
[1729851061425,8.1777,172.88,172.82,6.5807504]
[1729851061622,6.8757,172.88,172.82,1.4478168]
[1729851061826,16.90812677,172.91,172.87,2.8945]
[1729851062935,19.80192677,172.91,172.87,2.8945]
[1729851066337,2.8938,172.91,172.87,2.8945]
[1729851066536,1.1779,172.93,172.89,2.894]
[1729851067152,4.0714,172.93,172.89,2.894]
[1729851068638,15.40212677,172.9,172.86,2.8946]
[1729851068840,15.40212677,172.9,172.82,5.11911405]
[1729851068841,12.50812677,172.9,172.82,5.11911405]
[1729851069042,12.50812677,172.9,172.81,9.51911405]
[1729851069243,16.90812677,172.9,172.81,4.4]
[1729851069445,16.90812677,172.9,172.81,5.84771568]
[1729851069943,2.8941,172.89,172.85,2.8947]
[1729851070241,12.50812677,172.91,172.81,5.8476706]
[1729851070444,12.50812677,172.91,172.82,1.4476706]
[1729851070640,12.50812677,172.91,172.81,9.51911405]
[1729851070849,15.40192677,172.91,172.82,6.56669474]
[1729851071046,2.8938,172.91,172.82,5.11911405]
[1729851071238,2.8938,172.91,172.81,4.4]
[1729851071439,2.8938,172.91,172.82,1.44758137]
[1729851071640,12.50812677,172.92,172.82,13.95570814]
[1729851071942,12.50812677,172.92,172.82,19.07145764]
[1729851072149,12.50812677,172.92,172.82,17.62387627]
[1729851072652,15.40192677,172.92,172.82,12.50812677]
[1729851072847,12.50812677,172.9,172.8,15.01332677]
[1729851073043,12.50812677,172.9,172.81,5.84764892]
[1729851073242,2.8942,172.89,172.84,2.8948]
[1729851073843,15.40252677,172.88,172.83,2.8951]
[1729851074643,12.50812677,172.88,172.81,4.4]
[1729851074849,12.50812677,172.88,172.84,2.8949]
[1729851075447,12.50812677,172.88,172.81,4.4]
[1729851076051,1.1779,172.93,172.83,12.50812677]
[1729851076942,1.1779,172.93,172.89,2.894]
[1729851077339,1.1779,172.93,172.9,2.8939]
[1729851079052,1.1779,172.93,172.86,4.4]
[1729851079645,1.1779,172.93,172.88,2.8943]
[1729851079851,12.50812677,172.92,172.84,4.4]
[1729851080250,15.40182677,172.92,172.87,2.8943]
[1729851080553,2.8937,172.92,172.87,2.8943]
[1729851080759,12.50812677,172.91,172.87,2.8943]
[1729851081051,15.40202677,172.91,172.87,2.8943]
[1729851081945,12.50812677,172.91,172.87,2.8943]
[1729851083049,12.50812677,172.91,172.84,4.4]
[1729851083354,12.50812677,172.91,172.88,2.8942]
[1729851084158,12.50812677,172.91,172.84,4.4]
[1729851084353,15.40192677,172.91,172.86,2.8946]
[1729851085252,15.40192677,172.91,172.87,2.8944]
[1729851086350,2.894,172.9,172.87,2.8944]
[1729851086857,12.50812677,172.89,172.85,2.8948]
[1729851087152,15.40242677,172.89,172.85,2.8948]
[1729851088261,8.00614578,172.86,172.81,4.4]
[1729851088553,8.00614578,172.87,172.81,12.40614578]
[1729851089459,8.00614578,172.87,172.85,2.8948]
[1729851090564,8.00614578,172.87,172.86,2.8946]
[1729851090754,8.00614578,172.87,172.81,4.4]
[1729851090950,8.00614578,172.84,172.74,18.66508507]
[1729851091261,4.4,172.88,172.81,2.8953]
[1729851091262,8.00614578,172.82,172.81,2.8953]
[1729851091758,8.00614578,172.82,172.77,1.44768975]
[1729851091954,8.00614578,172.82,172.76,5.10743088]
[1729851091955,8.00614578,172.8,172.76,4.4]
[1729851092256,8.00614578,172.79,172.76,2.8962]
[1729851092652,8.00614578,172.79,172.73,8.00614578]
[1729851092858,8.00614578,172.75,172.71,6.55984257]
[1729851093061,8.00614578,172.75,172.7,12.40614578]
[1729851093757,2.5974,172.79,172.69,8.00614578]
[1729851093758,8.00614578,172.74,172.69,8.00614578]
[1729851094056,8.00614578,172.74,172.69,4.4]
[1729851094260,2.5974,172.79,172.69,4.4]
[1729851094261,12.52688514,172.76,172.69,4.4]
[1729851094454,15.42338514,172.76,172.7,2.8973]
[1729851094650,16.92688514,172.76,172.7,2.8973]
[1729851095163,12.52688514,172.74,172.69,2.8974]
[1729851096454,12.52688514,172.74,172.66,4.4]
[1729851096455,12.52688514,172.74,172.68,2.8976]
[1729851096664,12.52688514,172.74,172.66,4.4]
[1729851096864,16.92688514,172.76,172.66,4.4]
[1729851097053,16.92688514,172.76,172.73,2.8967]
[1729851097259,12.52688514,172.76,172.73,2.8967]
[1729851097863,12.52688514,172.76,172.66,10.95442481]
[1729851098364,12.52688514,172.76,172.71,2.897]
[1729851099151,15.42328514,172.76,172.71,2.897]
[1729851101061,15.42328514,172.76,172.72,2.897]
[1729851102266,7.2962,172.77,172.72,2.897]
[1729851102470,12.52688514,172.75,172.72,2.897]
[1729851102963,12.52688514,172.75,172.66,4.4]
[1729851103365,16.92688514,172.77,172.66,4.4]
[1729851104366,12.52688514,172.77,172.73,2.8967]
[1729851104564,16.92688514,172.77,172.73,2.8967]
[1729851106570,12.52688514,172.74,172.66,4.4]
[1729851109280,12.52688514,172.74,172.72,2.8968]
[1729851113677,12.52688514,172.74,172.66,4.4]
[1729851113880,12.52688514,172.72,172.66,4.4]
[1729851115978,2.8967,172.74,172.66,4.4]
[1729851116289,2.8967,172.74,172.7,2.8973]
[1729851116580,8.0102728,172.71,172.7,2.8973]
[1729851117769,1.192,172.78,172.67,8.0102728]
[1729851117975,1.192,172.78,172.66,4.4]
[1729851117976,8.0102728,172.73,172.72,2.8968]
[1729851121085,4.4,172.77,172.75,2.8964]
[1729851121287,8.0102728,172.76,172.75,2.8964]
[1729851122481,8.0102728,172.76,172.67,1.4486929]
[1729851122684,8.0102728,172.73,172.68,8.0102728]
[1729851124293,8.0102728,172.73,172.72,2.897]
[1729851132684,1.192,172.78,172.71,8.0102728]
[1729851132886,6.9974,172.79,172.71,8.0102728]
[1729851133079,8.0102728,172.77,172.71,8.0102728]
[1729851133285,8.0102728,172.77,172.76,2.8963]
[1729851135585,2.5974,172.79,172.77,2.8961]
[1729851135889,2.5974,172.79,172.34,11.83973061]
[1729851135890,1.2648,172.84,172.75,8.0102728]
[1729851136192,8.0102728,172.81,172.8,2.8955]
[1729851136989,8.0102728,172.81,172.75,4.4]
[1729851137189,8.0102728,172.76,172.75,4.4]
[1729851137587,8.0102728,172.76,172.75,2.8965]
[1729851138102,8.0102728,172.76,172.72,4.4]
[1729851138285,8.0102728,172.74,172.73,2.8967]
[1729851142899,8.0102728,172.74,172.69,4.4]
[1729851143101,8.0102728,172.74,172.72,2.8969]
[1729851143393,8.0102728,172.74,172.69,4.4]
[1729851143587,8.0102728,172.74,172.73,2.8968]
[1729851144193,4.4,172.81,172.69,12.4102728]
[1729851144394,8.0102728,172.77,172.75,2.8964]
[1729851145804,8.0102728,172.77,172.76,2.8963]
[1729851150506,4.4,172.81,172.72,8.0102728]
[1729851150703,8.0102728,172.79,172.78,2.8959]
[1729851152912,1.2406,172.83,172.76,8.0102728]
[1729851153112,8.0102728,172.81,172.8,2.8956]
[1729851154618,1.2406,172.83,172.8,2.8956]
[1729851154921,8.0102728,172.82,172.8,2.8956]
[1729851158216,8.0102728,172.81,172.79,2.8957]
[1729851160617,8.0102728,172.81,172.76,8.0102728]
[1729851160822,8.0102728,172.81,172.8,2.8956]
[1729851161019,1.2406,172.83,172.77,8.0102728]
[1729851161020,8.0102728,172.82,172.77,8.0102728]
[1729851161225,1.2406,172.83,172.79,8.0102728]
[1729851161226,8.0102728,172.83,172.79,8.0102728]
[1729851161417,8.0102728,172.84,172.82,2.8953]
[1729851164627,2.8947,172.86,172.83,2.8951]
[1729851164823,8.0102728,172.84,172.83,2.8951]
[1729851165627,8.0102728,172.84,172.82,2.8952]
[1729851166330,8.0102728,172.83,172.82,2.8952]
[1729851170227,8.0102728,172.83,172.77,12.4102728]
[1729851170434,8.0102728,172.83,172.78,6.59798732]
[1729851170730,8.0102728,172.83,172.77,12.4102728]
[1729851170927,8.0102728,172.83,172.81,2.8954]
[1729851171934,8.0102728,172.83,172.82,2.8953]
[1729851177937,8.0102728,172.83,172.77,4.4]
[1729851178238,8.0102728,172.81,172.77,4.4]
[1729851178640,8.0102728,172.81,172.8,2.8956]
[1729851179135,3.7449,172.86,172.78,8.0102728]
[1729851179334,8.0102728,172.83,172.78,8.0102728]
[1729851179938,8.0102728,172.83,172.8,2.8955]
[1729851182036,3.7449,172.86,172.8,2.8956]
[1729851182342,8.0102728,172.83,172.78,8.0102728]
[1729851182939,8.0102728,172.83,172.8,2.8955]
[1729851183134,8.0102728,172.83,172.78,8.0102728]
[1729851183534,8.0102728,172.83,172.8,2.8955]
[1729851185340,8.0102728,172.83,172.81,2.8953]
[1729851186039,3.7449,172.86,172.78,8.0102728]
[1729851186234,8.0102728,172.84,172.78,8.0102728]
[1729851186737,8.0102728,172.84,172.79,1.44823299]
[1729851186938,8.0102728,172.84,172.78,8.0102728]
[1729851187140,8.0102728,172.84,172.82,2.8952]
[1729851188731,8.0102728,172.84,172.83,2.8951]
[1729851189927,8.0102728,172.85,172.83,2.8951]
[1729851202535,8.0102728,172.85,172.82,2.8953]
[1729851208250,6.6396,172.86,172.82,2.8953]
[1729851208947,6.6396,172.86,172.79,4.38]
[1729851208948,7.2742,172.89,172.85,2.8947]
[1729851209155,2.8942,172.89,172.85,2.8947]
[1729851210954,2.8942,172.89,172.86,2.8946]